[Event "*** Qualifier 2: Titled Tuesday 3|2 Blitz"]
[Site "Chess.com"]
[Date "2017.04.11"]
[Round "10"]
[White "proxy6"]
[Black "XiaoKangZhong"]
[Result "1/2-1/2"]
[WhiteElo "2190"]
[BlackElo "1940"]
[TimeControl "180+2"]
[EndTime "15:19:19 PDT"]
[Termination "Game drawn by repetition"]

1. e4 {[%clk 0:03:02]} 1... c5 {[%clk 0:03:00.5]} 2. Nf3 {[%clk 0:03:02.5]} 2...
d6 {[%clk 0:03:01.4]} 3. d4 {[%clk 0:03:04.1]} 3... cxd4 {[%clk 0:03:02.4]} 4.
Nxd4 {[%clk 0:03:06]} 4... Nf6 {[%clk 0:03:03.5]} 5. Nc3 {[%clk 0:03:07.6]} 5...
a6 {[%clk 0:03:04.8]} 6. Be3 {[%clk 0:03:07.9]} 6... e6 {[%clk 0:03:05.5]} 7. g4
{[%clk 0:02:57.9]} 7... b5 {[%clk 0:03:03.1]} 8. g5 {[%clk 0:02:57.2]} 8... Nfd7
{[%clk 0:03:03.6]} 9. Rg1 {[%clk 0:02:56.7]} 9... Nb6 {[%clk 0:03:03.9]} 10. f4
{[%clk 0:02:51.6]} 10... Bb7 {[%clk 0:02:59.6]} 11. Bd3 {[%clk 0:02:51.6]} 11...
N8d7 {[%clk 0:02:59.5]} 12. Nb3 {[%clk 0:02:44.7]} 12... Rc8 {[%clk 0:02:53.7]}
13. Qd2 {[%clk 0:02:39.3]} 13... Nc4 {[%clk 0:02:49.3]} 14. Bxc4 {[%clk
0:02:40]} 14... Rxc4 {[%clk 0:02:49.5]} 15. Qd3 {[%clk 0:02:35.2]} 15... Qc7
{[%clk 0:02:39.7]} 16. a3 {[%clk 0:02:33.7]} 16... Be7 {[%clk 0:02:33.9]} 17.
O-O-O {[%clk 0:02:28.8]} 17... Kd8 {[%clk 0:02:28.9]} 18. Bd4 {[%clk 0:02:07.2]}
18... Rg8 {[%clk 0:02:24.8]} 19. e5 {[%clk 0:01:54.5]} 19... g6 {[%clk
0:02:15.6]} 20. exd6 {[%clk 0:01:36.4]} 20... Bxd6 {[%clk 0:02:15.5]} 21. Bf6+
{[%clk 0:01:30.8]} 21... Nxf6 {[%clk 0:02:14]} 22. Qxd6+ {[%clk 0:01:31.6]}
22... Qxd6 {[%clk 0:02:13.9]} 23. Rxd6+ {[%clk 0:01:33.5]} 23... Kc7 {[%clk
0:02:11.3]} 24. Rgd1 {[%clk 0:01:30.7]} 24... Nd5 {[%clk 0:02:10]} 25. Nxd5+
{[%clk 0:01:30.3]} 25... Bxd5 {[%clk 0:02:10.5]} 26. Rxa6 {[%clk 0:01:29.5]}
26... Kb7 {[%clk 0:02:10.5]} 27. Rd6 {[%clk 0:01:13.2]} 27... Kc7 {[%clk
0:02:09.4]} 28. Ra6 {[%clk 0:01:14]} 28... Kb7 {[%clk 0:02:10.4]} 29. Rd6 {[%clk
0:00:39.1]} 29... Kc7 {[%clk 0:02:09.8]} 30. Ra6 {[%clk 0:00:22.6]} 1/2-1/2

[Event "*** Qualifier 2: Titled Tuesday 3|2 Blitz"]
[Site "Chess.com"]
[Date "2017.04.11"]
[Round "10"]
[White "Wolverine_master"]
[Black "Aragon"]
[Result "0-1"]
[WhiteElo "1957"]
[BlackElo "2100"]
[TimeControl "180+2"]
[EndTime "15:20:28 PDT"]
[Termination "Aragon won by resignation"]

1. e4 {[%clk 0:03:02]} 1... Nc6 {[%clk 0:02:58.9]} 2. d4 {[%clk 0:03:02.4]} 2...
d5 {[%clk 0:02:59.4]} 3. c4 {[%clk 0:02:56]} 3... dxe4 {[%clk 0:02:48.8]} 4. d5
{[%clk 0:02:53.7]} 4... Ne5 {[%clk 0:02:49.9]} 5. Nc3 {[%clk 0:02:54.2]} 5...
Nd3+ {[%clk 0:02:50.2]} 6. Bxd3 {[%clk 0:02:54.2]} 6... exd3 {[%clk 0:02:52.1]}
7. Qxd3 {[%clk 0:02:55.7]} 7... Nf6 {[%clk 0:02:52.3]} 8. Bg5 {[%clk 0:02:55.8]}
8... Bg4 {[%clk 0:02:47]} 9. Nf3 {[%clk 0:02:36.7]} 9... a6 {[%clk 0:02:43.6]}
10. h3 {[%clk 0:02:31.6]} 10... Bh5 {[%clk 0:02:42.6]} 11. O-O {[%clk 0:02:19]}
11... Qd6 {[%clk 0:02:33.8]} 12. Rfe1 {[%clk 0:02:11.2]} 12... Bg6 {[%clk
0:02:25.6]} 13. Qe3 {[%clk 0:02:08.8]} 13... h6 {[%clk 0:02:22.5]} 14. Bf4
{[%clk 0:02:06]} 14... Qd8 {[%clk 0:02:18.5]} 15. Ne5 {[%clk 0:02:07.2]} 15...
Bh7 {[%clk 0:02:15.2]} 16. Rad1 {[%clk 0:02:03.2]} 16... g5 {[%clk 0:02:15.6]}
17. Bxg5 {[%clk 0:01:35]} 17... hxg5 {[%clk 0:02:15.9]} 18. Qxg5 {[%clk
0:01:36.9]} 18... Qd6 {[%clk 0:02:03.3]} 19. c5 {[%clk 0:01:32.2]} 19... Qxc5
{[%clk 0:01:58.6]} 20. Nd3 {[%clk 0:00:59.8]} 20... Qd6 {[%clk 0:01:53.1]} 21.
Nf4 {[%clk 0:00:34]} 21... O-O-O {[%clk 0:01:47.3]} 22. Rc1 {[%clk 0:00:32.9]}
22... Kb8 {[%clk 0:01:37.7]} 23. Na4 {[%clk 0:00:30]} 23... Be4 {[%clk 0:01:31]}
24. Nc5 {[%clk 0:00:24.9]} 24... Bh6 {[%clk 0:01:21.8]} 25. Nxe4 {[%clk
0:00:14.3]} 25... Nxe4 {[%clk 0:01:22.8]} 26. Qh5 {[%clk 0:00:14.5]} 26... Bxf4
{[%clk 0:01:23.1]} 27. Qxf7 {[%clk 0:00:12.9]} 27... Ng5 {[%clk 0:01:18.1]} 28.
Qxe7 {[%clk 0:00:11.2]} 28... Qxe7 {[%clk 0:01:16.7]} 29. Rxe7 {[%clk
0:00:13.1]} 29... Bxc1 {[%clk 0:01:18.2]} 0-1

[Event "*** Qualifier 2: Titled Tuesday 3|2 Blitz"]
[Site "Chess.com"]
[Date "2017.04.11"]
[Round "10"]
[White "tigra"]
[Black "oskariot"]
[Result "1-0"]
[WhiteElo "2611"]
[BlackElo "2437"]
[TimeControl "180+2"]
[EndTime "15:20:47 PDT"]
[Termination "tigra won by resignation"]

1. e4 {[%clk 0:03:02]} 1... c5 {[%clk 0:03:00.9]} 2. Nf3 {[%clk 0:03:03.3]} 2...
d6 {[%clk 0:03:02.5]} 3. d4 {[%clk 0:03:05.2]} 3... cxd4 {[%clk 0:03:04.4]} 4.
Nxd4 {[%clk 0:03:06.7]} 4... Nf6 {[%clk 0:03:06.3]} 5. Nc3 {[%clk 0:03:08.6]}
5... Nc6 {[%clk 0:03:08.2]} 6. Bg5 {[%clk 0:03:09.8]} 6... Bd7 {[%clk
0:03:03.8]} 7. Qd2 {[%clk 0:03:09.9]} 7... Rc8 {[%clk 0:03:05.1]} 8. O-O-O
{[%clk 0:03:10.7]} 8... Nxd4 {[%clk 0:03:06.1]} 9. Qxd4 {[%clk 0:03:11.6]} 9...
Qa5 {[%clk 0:03:08]} 10. f4 {[%clk 0:03:12.1]} 10... h6 {[%clk 0:03:07.8]} 11.
Bxf6 {[%clk 0:03:12.3]} 11... gxf6 {[%clk 0:03:09.7]} 12. Kb1 {[%clk 0:03:01.3]}
12... Qc5 {[%clk 0:03:09]} 13. Qd3 {[%clk 0:03:02.4]} 13... Bg7 {[%clk 0:03:10]}
14. f5 {[%clk 0:03:03.1]} 14... h5 {[%clk 0:03:10.4]} 15. Be2 {[%clk 0:03:03.1]}
15... Bh6 {[%clk 0:03:10.6]} 16. Nd5 {[%clk 0:03:03.5]} 16... h4 {[%clk
0:03:07.5]} 17. Rhf1 {[%clk 0:03:00.8]} 17... Bg5 {[%clk 0:03:08.1]} 18. Rf3
{[%clk 0:03:01]} 18... Rh6 {[%clk 0:02:44.3]} 19. Qb3 {[%clk 0:02:55.2]} 19...
Bc6 {[%clk 0:02:23.1]} 20. Rc3 {[%clk 0:02:49.3]} 20... Qa5 {[%clk 0:02:20.4]}
21. Bb5 {[%clk 0:02:11.5]} 21... Qd8 {[%clk 0:01:36.5]} 22. Qa4 {[%clk
0:02:03.2]} 22... Kf8 {[%clk 0:00:56.4]} 23. Bxc6 {[%clk 0:02:03.5]} 23... bxc6
{[%clk 0:00:57]} 24. Rxc6 {[%clk 0:02:05.4]} 24... Rxc6 {[%clk 0:00:57.1]} 25.
Qxc6 {[%clk 0:02:05.9]} 25... Kg7 {[%clk 0:00:57.2]} 26. b4 {[%clk 0:02:05.6]}
26... Rh8 {[%clk 0:00:50.6]} 27. Rd3 {[%clk 0:02:05.5]} 27... Qb8 {[%clk
0:00:42.9]} 28. Rc3 {[%clk 0:02:02.9]} 28... e6 {[%clk 0:00:31.2]} 29. fxe6
{[%clk 0:02:03.5]} 29... fxe6 {[%clk 0:00:33.1]} 30. Qd7+ {[%clk 0:02:04.7]}
30... Kh6 {[%clk 0:00:30]} 31. Qxe6 {[%clk 0:02:04]} 31... Qb5 {[%clk
0:00:31.3]} 32. Rf3 {[%clk 0:01:56.4]} 32... Qc4 {[%clk 0:00:24.6]} 33. Rxf6+
{[%clk 0:01:26.2]} 33... Bxf6 {[%clk 0:00:25]} 34. Qxf6+ {[%clk 0:01:28.1]}
34... Kh7 {[%clk 0:00:26.1]} 35. Qxh4+ {[%clk 0:01:29]} 35... Kg7 {[%clk
0:00:25.8]} 36. Qg5+ {[%clk 0:01:29]} 1-0

[Event "*** Qualifier 2: Titled Tuesday 3|2 Blitz"]
[Site "Chess.com"]
[Date "2017.04.11"]
[Round "10"]
[White "Feegus"]
[Black "Buffy7"]
[Result "0-1"]
[WhiteElo "2363"]
[BlackElo "2501"]
[TimeControl "180+2"]
[EndTime "15:20:59 PDT"]
[Termination "Buffy7 won on time"]

1. d4 {[%clk 0:02:37.6]} 1... Nf6 {[%clk 0:02:58.9]} 2. Bf4 {[%clk 0:02:33.5]}
2... g6 {[%clk 0:02:58.2]} 3. e3 {[%clk 0:02:34]} 3... Bg7 {[%clk 0:02:59.5]} 4.
Nf3 {[%clk 0:02:35.7]} 4... O-O {[%clk 0:03:00.9]} 5. Be2 {[%clk 0:02:37.4]}
5... d6 {[%clk 0:03:01.8]} 6. O-O {[%clk 0:02:39]} 6... b6 {[%clk 0:03:02.7]} 7.
h3 {[%clk 0:02:39.5]} 7... Bb7 {[%clk 0:03:03.6]} 8. a4 {[%clk 0:02:41.2]} 8...
a6 {[%clk 0:02:59.5]} 9. c3 {[%clk 0:02:40.3]} 9... Nbd7 {[%clk 0:02:58.9]} 10.
Na3 {[%clk 0:02:27.8]} 10... Ra7 {[%clk 0:02:58.2]} 11. Rc1 {[%clk 0:02:16.9]}
11... Qa8 {[%clk 0:02:59]} 12. a5 {[%clk 0:02:16.1]} 12... b5 {[%clk 0:02:57.2]}
13. c4 {[%clk 0:02:17.2]} 13... bxc4 {[%clk 0:02:52.3]} 14. Nxc4 {[%clk
0:02:16]} 14... Bd5 {[%clk 0:02:50.4]} 15. Qa4 {[%clk 0:02:07.7]} 15... Rb8
{[%clk 0:02:47.4]} 16. Nfd2 {[%clk 0:02:03]} 16... Bxg2 {[%clk 0:02:44.7]} 17.
Rfd1 {[%clk 0:02:01.3]} 17... Bd5 {[%clk 0:02:21.6]} 18. f3 {[%clk 0:01:50.1]}
18... Rab7 {[%clk 0:02:10.6]} 19. Kf2 {[%clk 0:01:40.5]} 19... Rb4 {[%clk
0:02:08.9]} 20. Qa3 {[%clk 0:01:36.8]} 20... Nh5 {[%clk 0:02:06.8]} 21. Bh2
{[%clk 0:01:33.7]} 21... Qb7 {[%clk 0:02:01.4]} 22. b3 {[%clk 0:01:11.7]} 22...
c5 {[%clk 0:01:55.3]} 23. dxc5 {[%clk 0:01:06.3]} 23... Nxc5 {[%clk 0:01:41.5]}
24. Nb6 {[%clk 0:01:01.4]} 24... Rh4 {[%clk 0:01:21.1]} 25. Bf1 {[%clk
0:00:39.5]} 25... Be6 {[%clk 0:01:15.3]} 26. Bg2 {[%clk 0:00:20.7]} 26... Bxh3
{[%clk 0:01:14.6]} 27. Bg3 {[%clk 0:00:13.7]} 27... Nd3+ {[%clk 0:01:12.5]} 28.
Ke2 {[%clk 0:00:09.5]} 28... Nxg3+ {[%clk 0:01:13.7]} 29. Kxd3 {[%clk
0:00:11.4]} 29... Bxg2 {[%clk 0:01:15]} 30. Rg1 {[%clk 0:00:04.4]} 30... Bxf3
{[%clk 0:01:05.8]} 31. Rxg3 {[%clk 0:00:05.3]} 31... Bc6 {[%clk 0:01:06.1]} 32.
Ndc4 {[%clk 0:00:03.3]} 32... Bb5 {[%clk 0:01:05.9]} 0-1

[Event "*** Qualifier 2: Titled Tuesday 3|2 Blitz"]
[Site "Chess.com"]
[Date "2017.04.11"]
[Round "10"]
[White "JaimeSantosLatasa"]
[Black "woodhy"]
[Result "1-0"]
[WhiteElo "2527"]
[BlackElo "2175"]
[TimeControl "180+2"]
[EndTime "15:21:15 PDT"]
[Termination "JaimeSantosLatasa won by resignation"]

1. e4 {[%clk 0:03:02]} 1... e6 {[%clk 0:03:00.4]} 2. d4 {[%clk 0:03:01.6]} 2...
d5 {[%clk 0:03:02.3]} 3. Nc3 {[%clk 0:03:02.8]} 3... Bb4 {[%clk 0:03:03.4]} 4.
e5 {[%clk 0:03:03]} 4... c5 {[%clk 0:03:04.6]} 5. a3 {[%clk 0:03:04.3]} 5...
Bxc3+ {[%clk 0:03:06]} 6. bxc3 {[%clk 0:03:06.2]} 6... Ne7 {[%clk 0:03:07.5]} 7.
Qg4 {[%clk 0:03:07.2]} 7... Qc7 {[%clk 0:03:08.2]} 8. Qxg7 {[%clk 0:03:07.3]}
8... Rg8 {[%clk 0:03:09.5]} 9. Qxh7 {[%clk 0:03:08.1]} 9... cxd4 {[%clk
0:03:11.4]} 10. Ne2 {[%clk 0:03:08.3]} 10... Nbc6 {[%clk 0:03:13.3]} 11. f4
{[%clk 0:03:08.5]} 11... Bd7 {[%clk 0:03:14.6]} 12. Qd3 {[%clk 0:03:08.5]} 12...
dxc3 {[%clk 0:03:16.5]} 13. Nxc3 {[%clk 0:03:08.8]} 13... a6 {[%clk 0:03:16.7]}
14. Ne2 {[%clk 0:03:10.4]} 14... O-O-O {[%clk 0:03:06.2]} 15. c3 {[%clk
0:03:09.9]} 15... Na5 {[%clk 0:03:05.4]} 16. Nd4 {[%clk 0:03:07.6]} 16... Nf5
{[%clk 0:02:55.7]} 17. Nxf5 {[%clk 0:02:54.6]} 17... exf5 {[%clk 0:02:57.6]} 18.
a4 {[%clk 0:02:54.1]} 18... Nb3 {[%clk 0:02:54.2]} 19. Rb1 {[%clk 0:02:53.3]}
19... Bxa4 {[%clk 0:02:41]} 20. Be3 {[%clk 0:02:50.5]} 20... Bb5 {[%clk
0:02:35.8]} 21. Qxf5+ {[%clk 0:02:49.5]} 21... Kb8 {[%clk 0:02:29.2]} 22. Rxb3
{[%clk 0:02:46.2]} 22... Bxf1 {[%clk 0:02:28.6]} 23. Rxf1 {[%clk 0:02:48.1]}
23... Rxg2 {[%clk 0:02:23.5]} 24. Qb1 {[%clk 0:02:40.1]} 24... b5 {[%clk
0:02:16.6]} 25. Qd3 {[%clk 0:02:32.3]} 25... Rxh2 {[%clk 0:02:10.8]} 26. Rf2
{[%clk 0:02:28]} 26... Rh1+ {[%clk 0:02:01.7]} 27. Kd2 {[%clk 0:02:26.7]} 27...
Qc4 {[%clk 0:02:00.8]} 28. Kc2 {[%clk 0:02:09.2]} 28... Qa4 {[%clk 0:01:45.9]}
29. Qd4 {[%clk 0:02:08.6]} 29... Qa2+ {[%clk 0:01:07.1]} 30. Rb2 {[%clk
0:02:08.4]} 30... Qa1 {[%clk 0:01:07.8]} 31. Qb6+ {[%clk 0:02:05.9]} 31... Kc8
{[%clk 0:01:09.1]} 32. Qc6+ {[%clk 0:02:06.6]} 32... Kb8 {[%clk 0:01:10]} 33.
Ba7+ {[%clk 0:02:07.6]} 33... Kxa7 {[%clk 0:01:09.1]} 34. Qc7+ {[%clk
0:02:08.2]} 34... Ka8 {[%clk 0:01:10.3]} 35. Qxd8+ {[%clk 0:02:10.1]} 35... Ka7
{[%clk 0:01:11.8]} 36. Qc7+ {[%clk 0:02:04.2]} 36... Ka8 {[%clk 0:01:12.5]} 37.
Qc8+ {[%clk 0:02:01.9]} 37... Ka7 {[%clk 0:01:13.5]} 38. Qc5+ {[%clk 0:02:02.4]}
38... Kb8 {[%clk 0:01:13.4]} 39. Qxd5 {[%clk 0:02:00]} 39... Rc1+ {[%clk
0:01:09.3]} 40. Kd3 {[%clk 0:02:00.3]} 40... Rd1+ {[%clk 0:01:05.2]} 41. Rfd2
{[%clk 0:01:55.5]} 41... Rf1 {[%clk 0:00:33.2]} 42. Qd8+ {[%clk 0:01:51.3]}
42... Kb7 {[%clk 0:00:34.3]} 43. Qd7+ {[%clk 0:01:52.2]} 43... Kb8 {[%clk
0:00:35.5]} 44. Ke4 {[%clk 0:01:49.6]} 44... Qe1+ {[%clk 0:00:26]} 45. Kf5
{[%clk 0:01:48.1]} 45... Rxf4+ {[%clk 0:00:15.7]} 46. Kxf4 {[%clk 0:01:47.3]}
46... Qh4+ {[%clk 0:00:17.6]} 47. Qg4 {[%clk 0:01:46.7]} 47... Qh6+ {[%clk
0:00:19]} 48. Qg5 {[%clk 0:01:46.8]} 48... Qc6 {[%clk 0:00:20.9]} 49. Qd8+
{[%clk 0:01:46.3]} 1-0

[Event "*** Qualifier 2: Titled Tuesday 3|2 Blitz"]
[Site "Chess.com"]
[Date "2017.04.11"]
[Round "10"]
[White "Th3ChessViking"]
[Black "Abrito99"]
[Result "0-1"]
[WhiteElo "2269"]
[BlackElo "2325"]
[TimeControl "180+2"]
[EndTime "15:21:23 PDT"]
[Termination "Abrito99 won on time"]

1. c4 {[%clk 0:02:57.7]} 1... Nf6 {[%clk 0:02:59.7]} 2. g3 {[%clk 0:02:59.2]}
2... g6 {[%clk 0:02:57.4]} 3. Bg2 {[%clk 0:03:01.1]} 3... Bg7 {[%clk 0:02:59.1]}
4. Nc3 {[%clk 0:03:01.9]} 4... O-O {[%clk 0:03:00.7]} 5. Nf3 {[%clk 0:03:01.8]}
5... d6 {[%clk 0:03:01.7]} 6. O-O {[%clk 0:03:03.7]} 6... Nbd7 {[%clk
0:03:03.1]} 7. d3 {[%clk 0:03:03.1]} 7... c5 {[%clk 0:03:02.3]} 8. Rb1 {[%clk
0:03:03.2]} 8... Rb8 {[%clk 0:03:03.7]} 9. a3 {[%clk 0:03:03.3]} 9... b6 {[%clk
0:03:05.1]} 10. b3 {[%clk 0:03:03.1]} 10... Bb7 {[%clk 0:03:06.7]} 11. Bb2
{[%clk 0:03:04.4]} 11... e6 {[%clk 0:03:04.9]} 12. d4 {[%clk 0:03:04.3]} 12...
Qe7 {[%clk 0:02:24.2]} 13. dxc5 {[%clk 0:02:56.4]} 13... Nxc5 {[%clk 0:02:24.1]}
14. Nb5 {[%clk 0:02:56.9]} 14... Rfd8 {[%clk 0:02:23.3]} 15. b4 {[%clk
0:02:50.5]} 15... a6 {[%clk 0:02:22.1]} 16. bxc5 {[%clk 0:02:38.7]} 16... dxc5
{[%clk 0:02:22]} 17. Qb3 {[%clk 0:02:23.1]} 17... axb5 {[%clk 0:02:22.8]} 18.
Qxb5 {[%clk 0:02:19.1]} 18... Be4 {[%clk 0:02:23.8]} 19. Rbd1 {[%clk 0:02:18.1]}
19... Qb7 {[%clk 0:02:23.3]} 20. Be5 {[%clk 0:02:13.7]} 20... Ra8 {[%clk
0:02:19.2]} 21. Qb2 {[%clk 0:02:13.6]} 21... Ne8 {[%clk 0:02:08.9]} 22. Bxg7
{[%clk 0:02:12.7]} 22... Nxg7 {[%clk 0:02:10.7]} 23. a4 {[%clk 0:02:09.5]} 23...
Nf5 {[%clk 0:01:55.8]} 24. Qf6 {[%clk 0:02:08.6]} 24... Nd4 {[%clk 0:01:41.7]}
25. Nxd4 {[%clk 0:02:00]} 25... cxd4 {[%clk 0:01:29.7]} 26. f3 {[%clk
0:01:50.5]} 26... Bc2 {[%clk 0:01:15.7]} 27. Rxd4 {[%clk 0:01:51]} 27... Rxd4
{[%clk 0:01:13.5]} 28. Qxd4 {[%clk 0:01:52.9]} 28... Bxa4 {[%clk 0:01:15]} 29.
Rb1 {[%clk 0:01:51.7]} 29... Qc7 {[%clk 0:01:08.4]} 30. Rxb6 {[%clk 0:01:29.3]}
30... Rd8 {[%clk 0:01:09.2]} 31. Qb2 {[%clk 0:01:29.1]} 31... Qc5+ {[%clk
0:01:00.3]} 0-1

[Event "*** Qualifier 2: Titled Tuesday 3|2 Blitz"]
[Site "Chess.com"]
[Date "2017.04.11"]
[Round "10"]
[White "sorito"]
[Black "Gabrielian_Artur"]
[Result "1-0"]
[WhiteElo "2322"]
[BlackElo "2588"]
[TimeControl "180+2"]
[EndTime "15:21:27 PDT"]
[Termination "sorito won by resignation"]

1. d4 {[%clk 0:03:02]} 1... Nf6 {[%clk 0:03:00.4]} 2. Nf3 {[%clk 0:03:03.6]}
2... g6 {[%clk 0:03:01.2]} 3. Nc3 {[%clk 0:03:01.2]} 3... d5 {[%clk 0:03:00.7]}
4. Bg5 {[%clk 0:03:02.1]} 4... Bg7 {[%clk 0:03:01.2]} 5. Bxf6 {[%clk 0:03:00]}
5... Bxf6 {[%clk 0:03:00]} 6. e4 {[%clk 0:03:01.1]} 6... dxe4 {[%clk 0:02:58]}
7. Nxe4 {[%clk 0:03:01.6]} 7... Bg7 {[%clk 0:02:59.2]} 8. c3 {[%clk 0:03:00.8]}
8... O-O {[%clk 0:02:59.3]} 9. Bc4 {[%clk 0:03:01.8]} 9... Nd7 {[%clk
0:02:56.5]} 10. Qe2 {[%clk 0:02:52.4]} 10... Nf6 {[%clk 0:02:51.6]} 11. Nxf6+
{[%clk 0:02:46.8]} 11... exf6 {[%clk 0:02:48.3]} 12. O-O {[%clk 0:02:45.3]}
12... c6 {[%clk 0:02:49.2]} 13. Rfe1 {[%clk 0:02:45.4]} 13... Bf5 {[%clk
0:02:48.1]} 14. Nh4 {[%clk 0:02:44.3]} 14... Bd7 {[%clk 0:02:48.2]} 15. a3
{[%clk 0:02:36.1]} 15... f5 {[%clk 0:02:48.6]} 16. Nf3 {[%clk 0:02:36.5]} 16...
Bf6 {[%clk 0:02:48.4]} 17. Qd2 {[%clk 0:02:37]} 17... Kg7 {[%clk 0:02:48.9]} 18.
Qf4 {[%clk 0:02:36.2]} 18... Qb8 {[%clk 0:02:42.7]} 19. Ne5 {[%clk 0:02:35.3]}
19... Be8 {[%clk 0:02:28]} 20. h4 {[%clk 0:02:33.2]} 20... h5 {[%clk 0:02:25.6]}
21. Re2 {[%clk 0:02:33.3]} 21... Qd8 {[%clk 0:02:25.7]} 22. g3 {[%clk
0:02:32.4]} 22... b5 {[%clk 0:02:25.3]} 23. Bb3 {[%clk 0:02:32.9]} 23... a5
{[%clk 0:02:26.5]} 24. Rae1 {[%clk 0:02:33.9]} 24... b4 {[%clk 0:02:26.7]} 25.
Nd3 {[%clk 0:02:12.4]} 25... bxa3 {[%clk 0:02:25.4]} 26. bxa3 {[%clk 0:02:13.2]}
26... Rb8 {[%clk 0:02:25.2]} 27. Nc5 {[%clk 0:02:13.2]} 27... Qb6 {[%clk
0:01:59.4]} 28. a4 {[%clk 0:02:12.9]} 28... Rd8 {[%clk 0:01:58.5]} 29. Kg2
{[%clk 0:01:56.6]} 29... Qb8 {[%clk 0:01:58.8]} 30. Qxb8 {[%clk 0:01:48.4]}
30... Rxb8 {[%clk 0:01:58.9]} 31. f4 {[%clk 0:01:49.2]} 31... Kg8 {[%clk
0:01:44.7]} 32. Kf3 {[%clk 0:01:47]} 32... Rd8 {[%clk 0:01:42.5]} 33. Rb1 {[%clk
0:01:46.5]} 33... Bd7 {[%clk 0:01:41.1]} 34. Bc4 {[%clk 0:01:42.7]} 34... Bc8
{[%clk 0:01:33.5]} 35. Rb6 {[%clk 0:01:39.9]} 35... Rd6 {[%clk 0:01:33.6]} 36.
Rb8 {[%clk 0:01:40.1]} 36... Rfd8 {[%clk 0:01:33.2]} 37. Reb2 {[%clk 0:01:37.4]}
37... Kg7 {[%clk 0:01:32.7]} 38. Ra8 {[%clk 0:01:38.4]} 38... Bxd4 {[%clk
0:01:09.2]} 39. cxd4 {[%clk 0:01:38.2]} 39... Rxd4 {[%clk 0:01:10.3]} 40. Be2
{[%clk 0:01:33.1]} 40... Re8 {[%clk 0:01:00]} 41. Rxa5 {[%clk 0:01:28.4]} 41...
Re7 {[%clk 0:00:53.6]} 42. Ra8 {[%clk 0:01:27.3]} 42... Rc7 {[%clk 0:00:51.9]}
43. Rc2 {[%clk 0:01:27.3]} 43... Rb4 {[%clk 0:00:48.8]} 44. a5 {[%clk
0:01:28.3]} 44... Rb1 {[%clk 0:00:47]} 45. a6 {[%clk 0:01:29.2]} 45... Ra1
{[%clk 0:00:48.2]} 46. Rb2 {[%clk 0:01:27.2]} 46... Ra3+ {[%clk 0:00:48.3]} 47.
Kf2 {[%clk 0:01:27.3]} 47... Kf6 {[%clk 0:00:48.5]} 48. Rbb8 {[%clk 0:01:27.8]}
48... Be6 {[%clk 0:00:49.6]} 49. Nxe6 {[%clk 0:01:28.6]} 49... fxe6 {[%clk
0:00:49.7]} 50. Rb7 {[%clk 0:01:29.7]} 50... Re7 {[%clk 0:00:40.8]} 51. Rf8+
{[%clk 0:01:29.1]} 1-0

[Event "*** Qualifier 2: Titled Tuesday 3|2 Blitz"]
[Site "Chess.com"]
[Date "2017.04.11"]
[Round "10"]
[White "aRk_iN"]
[Black "GM_Splinter"]
[Result "0-1"]
[WhiteElo "2143"]
[BlackElo "2335"]
[TimeControl "180+2"]
[EndTime "15:21:30 PDT"]
[Termination "GM_Splinter won on time"]

1. e4 {[%clk 0:03:02]} 1... e5 {[%clk 0:03:00.4]} 2. Nf3 {[%clk 0:03:02.8]} 2...
Nc6 {[%clk 0:03:01.2]} 3. Bb5 {[%clk 0:03:03.8]} 3... a6 {[%clk 0:03:01.7]} 4.
Bxc6 {[%clk 0:03:05.1]} 4... dxc6 {[%clk 0:03:02.4]} 5. O-O {[%clk 0:03:04.5]}
5... Bg4 {[%clk 0:03:03.1]} 6. h3 {[%clk 0:03:04.7]} 6... Bh5 {[%clk 0:03:03]}
7. d3 {[%clk 0:02:59.7]} 7... f6 {[%clk 0:03:02.5]} 8. c3 {[%clk 0:02:45.4]}
8... c5 {[%clk 0:02:59.3]} 9. Be3 {[%clk 0:01:36.2]} 9... Bd6 {[%clk 0:02:59.1]}
10. Nbd2 {[%clk 0:01:35.9]} 10... Ne7 {[%clk 0:02:57.9]} 11. Qb3 {[%clk
0:01:34.8]} 11... b5 {[%clk 0:02:42.9]} 12. a4 {[%clk 0:01:28.3]} 12... Rb8
{[%clk 0:02:43.7]} 13. axb5 {[%clk 0:01:28]} 13... axb5 {[%clk 0:02:45.6]} 14.
Nh4 {[%clk 0:01:22.1]} 14... Qd7 {[%clk 0:02:34.3]} 15. d4 {[%clk 0:01:11.6]}
15... cxd4 {[%clk 0:02:04.8]} 16. cxd4 {[%clk 0:01:11.4]} 16... exd4 {[%clk
0:02:03.9]} 17. Bxd4 {[%clk 0:01:08.2]} 17... c5 {[%clk 0:02:05]} 18. Be3 {[%clk
0:01:02]} 18... c4 {[%clk 0:02:05.4]} 19. Qc2 {[%clk 0:00:48.9]} 19... O-O
{[%clk 0:02:00]} 20. Nf5 {[%clk 0:00:40.9]} 20... Nxf5 {[%clk 0:01:58.8]} 21.
exf5 {[%clk 0:00:42.5]} 21... Be2 {[%clk 0:01:58.6]} 22. Rfe1 {[%clk 0:00:40.4]}
22... Bd3 {[%clk 0:01:59.4]} 23. Qc1 {[%clk 0:00:29.5]} 23... Qxf5 {[%clk
0:01:58.2]} 24. Ra6 {[%clk 0:00:19.8]} 24... Bb4 {[%clk 0:01:40.5]} 25. Rd1
{[%clk 0:00:15.2]} 25... Rfe8 {[%clk 0:01:35.7]} 26. Nf3 {[%clk 0:00:16.1]}
26... Qg6 {[%clk 0:01:30.1]} 27. Nd4 {[%clk 0:00:16.4]} 27... Be4 {[%clk
0:01:25.6]} 28. g3 {[%clk 0:00:17.8]} 28... Qh5 {[%clk 0:01:23]} 29. Kh2 {[%clk
0:00:19.2]} 29... Bc5 {[%clk 0:01:14.2]} 30. Qd2 {[%clk 0:00:12.4]} 30... Rbd8
{[%clk 0:01:07.7]} 31. g4 {[%clk 0:00:08.1]} 31... Qe5+ {[%clk 0:01:04.3]} 32.
f4 {[%clk 0:00:08.4]} 32... Qb8 {[%clk 0:00:52.5]} 33. Qf2 {[%clk 0:00:09.1]}
33... Qb7 {[%clk 0:00:47.3]} 34. Raa1 {[%clk 0:00:02.9]} 34... Bd3 {[%clk
0:00:45.7]} 0-1